fUSD/lending_fUSD_20241026
["ID","MTS","AMOUNT","RATE_DAILY","PERIOD"]
[340870091,1729965041164,-500.0,0.00067675,120]
[340870093,1729965041174,-500.0,0.00067675,120]
[340870095,1729965041183,-500.0,0.00067675,120]
[340870097,1729965041192,-500.0,0.00067675,120]
[340870099,1729965041202,-500.0,0.00067675,120]
[340870101,1729965041212,-500.0,0.00067675,120]
[340870103,1729965041222,-500.0,0.00067675,120]
[340870105,1729965041232,-500.0,0.00067675,120]
[340870107,1729965041245,-500.0,0.00067675,120]
[340870109,1729965041254,-867.4,0.00067675,120]
[340870111,1729965041264,-867.4,0.00067675,120]
[340870113,1729965041274,-484.78040554,0.00067675,120]
[340870116,1729965041286,-15.21959446,0.00067675,120]
[340870118,1729965041295,-500.0,0.00067675,120]
[340870119,1729965041304,-500.0,0.00067675,120]
[340870121,1729965041312,-669.72,0.00067675,120]
[340870123,1729965041322,-669.72,0.00067675,120]
[340870125,1729965041331,-669.72,0.00067675,120]
[340870127,1729965041340,-18164.27900026,0.00067676,120]
[340870136,1729965041421,-1352.59422969,0.00067676,120]
[340870139,1729965041433,-341.145569,0.00067676,120]
[340870141,1729965041446,-2097.8635892,0.00067676,120]
[340870143,1729965041460,-2202.35425286,0.00067676,120]
[340870145,1729965041470,-87744.99781511,0.00067676,120]
[340870148,1729965041481,-1301.90749695,0.00067676,120]
[340870158,1729965041568,-3935.86407962,0.00067676,120]
[340870160,1729965041579,-6409.69574016,0.00067676,120]
[340870162,1729965041591,-561.97850452,0.00067676,120]
[340870164,1729965041602,-1009.71667059,0.00067676,120]
[340870166,1729965041612,-20685.37614258,0.00067676,120]
[340870168,1729965041623,-301.71636781,0.00067676,120]
[340870171,1729965041634,-1514.169996,0.00067676,120]
[340870173,1729965041646,-76247.93648641,0.00067676,120]
[340870175,1729965041658,-1187.17816623,0.00067676,120]
[340870177,1729965041669,-4312.82183377,0.00067676,120]
[340870180,1729965041680,-720.3124392,0.00067676,120]
[340870182,1729965041690,-813.08246141,0.00067676,120]
[340870184,1729965041702,-460.20180128,0.00067676,120]
[340870186,1729965041712,-743.669,0.00067676,120]
[340870188,1729965041723,-671.065,0.00067676,120]
[340870346,1729965043130,-320.2663281,0.0006749,2]
[340870348,1729965043140,-755.26406742,0.0006759,2]
[340870349,1729965043149,-494.150976,0.00067664,120]
[340870351,1729965043160,-181.08170444,0.00067675,120]
[340870354,1729965043188,-313.06927156,0.00067675,120]
[340870355,1729965043198,-339.93813403,0.00067676,120]
[340870356,1729965043209,-4728.72441734,0.00067676,120]
[340870357,1729965043220,-1241.0,0.00067676,120]
[340870358,1729965043232,-68100.0,0.00067676,120]
[340870371,1729965045957,-262.32200505,0.00065753,120]
[340870372,1729965045969,-1330.64799495,0.00065753,120]
[340870373,1729965045979,-1592.97,0.00066276,120]
[340870374,1729965045989,-1592.97,0.00067599,120]
[340870375,1729965045999,-1592.97,0.00067663,120]
[340870376,1729965046009,-1592.97,0.00067674,120]
[340870377,1729965046019,-1592.97,0.00067674,120]
[340870378,1729965046029,-1592.97,0.00067675,120]
[340870379,1729965046039,-1592.97,0.00067675,120]
[340870380,1729965046049,-36024.98117817,0.00067676,120]
[340870381,1729965046060,-8921.62036563,0.00067676,120]
[340870382,1729965046131,-1592.97,0.00067675,120]
[340870383,1729965046141,-7089.27797728,0.00067676,120]
[340870384,1729965046152,-66702.40437154,0.00067676,120]
[340870385,1729965046193,-1264.7968584,0.00067676,120]
[340870386,1729965046253,-71055.06076622,0.00067676,120]
[340870387,1729965046364,-641.337702,0.00067676,120]
[340870821,1729965426844,150.0,0.00015,2]
[340870822,1729965426866,100.0,0.00015,2]
[340870823,1729965427970,50.0,0.00017,2]
[340870824,1729965427992,150.0,0.00017,2]
[340870825,1729965428013,100.0,0.00017,2]
[340870826,1729965481281,150.0,0.00019725,2]
[340870827,1729965550551,150.0,0.00019178,2]
[340870828,1729965550573,44.16,0.00019178,2]
[340870830,1729965838432,157.43,0.00015342,2]
[340870831,1729966028136,-540.26737136,0.000523,2]
[340870832,1729966028155,-1435.0,0.000523,2]
[340870833,1729966028175,-153.09937151,0.00054695,120]
[340870834,1729966028194,-500.0,0.00054795,120]
[340870835,1729966028213,-1150.0,0.00057104,120]
[340870836,1729966028232,-452.428,0.00057104,120]
[340870837,1729966028252,-225.518,0.00059598,2]
[340870838,1729966028271,-151.613,0.00059598,120]
[340870839,1729966028290,-341.05,0.00064338,2]
[340870840,1729966028309,-150.0,0.00065752,12]
[340870841,1729966028328,-500.0,0.00065753,120]
[340870842,1729966028347,-500.0,0.00065753,120]
[340870843,1729966028366,-10.09501579,0.00065753,120]
[340870844,1729966039137,-489.90498421,0.00065753,120]
[340870845,1729966039156,-500.0,0.00065753,10]
[340870846,1729966039175,-500.0,0.00065753,120]
[340870847,1729966039193,-500.0,0.00065753,120]
[340870848,1729966039212,-333.56423664,0.00065753,7]
[340870849,1729966039233,-500.0,0.00065753,120]
[340870850,1729966039253,-301.22014993,0.00065753,120]
[340870851,1729966039273,-500.0,0.00065753,120]
[340870852,1729966039292,-500.0,0.00065753,120]
[340870853,1729966039312,-500.0,0.00065753,120]
[340870854,1729966039331,-505.89436418,0.00065899,10]
[340870855,1729966039350,-150.39,0.00065911,120]
[340870856,1729966039369,-214.392,0.00066045,120]
[340870857,1729966039389,-250.0,0.00066116,120]
[340870858,1729966039408,-500.0,0.00066186,120]
[340870859,1729966039428,-500.0,0.00066186,120]
[340870860,1729966039447,-500.0,0.00066186,120]
[340870861,1729966039469,-6023.1,0.00066208,2]
[340870862,1729966039489,-800.0,0.00066223,120]
[340870863,1729966039508,-13456.72213941,0.00066224,2]
[340870864,1729966049117,-10443.27786059,0.00066224,2]
[340870865,1729966049136,-150.0,0.00066242,7]
[340870866,1729966049155,-500.0,0.00066286,120]
[340870867,1729966049175,-500.0,0.00066286,120]
[340870868,1729966049292,-500.0,0.00066286,120]
[340870869,1729966049313,-500.0,0.00066287,120]
[340870870,1729966049332,-500.0,0.00066287,120]
[340870871,1729966049352,-200.0,0.0006629,120]
[340870872,1729966049372,-199.9,0.0006641,120]
[340870873,1729966049392,-341.05,0.00066601,2]
[340870874,1729966049412,-634.80999332,0.00067319,60]
[340870875,1729966049432,-150.0,0.00067412,60]
[340870876,1729966049454,-150.0,0.00067417,60]
[340870877,1729966049475,-150.0,0.00067422,60]
[340870878,1729966049496,-150.0,0.00067435,60]
[340870879,1729966049517,-150.0,0.0006744,60]
[340870880,1729966049540,-150.0,0.00067442,60]
[340870881,1729966049563,-150.0,0.00067444,60]
[340870882,1729966049585,-150.0,0.00067461,60]
[340870883,1729966049605,-150.0,0.00067463,60]
[340870884,1729966049626,-150.0,0.00067475,60]
[340870885,1729966049647,-150.0,0.0006749,60]
[340870886,1729966049665,-300.0,0.000675,2]
[340870887,1729966049685,-150.0,0.00067508,60]
[340870888,1729966049706,-150.0,0.00067508,60]
[340870889,1729966049727,-150.0,0.00067513,60]
[340870890,1729966049751,-150.0,0.00067513,60]
[340870891,1729966049774,-150.0,0.0006752,60]
[340870892,1729966049795,-4335.10866409,0.00067529,120]
[340870893,1729966049816,-150.0,0.00067531,60]
[340870894,1729966049838,-150.0,0.00067539,60]
[340870895,1729966049860,-150.0,0.00067554,60]
[340870896,1729966049880,-2316.1271,0.00067563,2]
[340870897,1729966049899,-2011.7771,0.00067563,2]
[340870898,1729966049920,-150.0,0.0006757,60]
[340870899,1729966049946,-150.0,0.00067571,60]
[340870900,1729966049971,-150.0,0.00067571,60]
[340870901,1729966049995,-336.4967,0.00067576,2]
[340870902,1729966050014,-2500.0,0.00067576,2]
[340870903,1729966050034,-423.79460917,0.00067577,15]
[340870904,1729966050056,-150.0,0.0006758,60]
[340870905,1729966050076,-214.97156889,0.00067589,39]
[340870906,1729966050095,-320.26632809,0.00067589,2]
[340870907,1729966050114,-503.50937828,0.0006759,2]
[340870908,1729966050133,-4644.43301505,0.0006759,2]
[340870928,1729966232096,-500.0,0.00065753,120]
[340870930,1729966232105,-500.0,0.00065753,120]
[340870932,1729966232114,-500.0,0.00066186,120]
[340870933,1729966232123,-444.40115768,0.00066186,120]
[340870940,1729966232326,-55.59884232,0.00066186,120]
[340870941,1729966232335,-150.0,0.00066649,7]
[340870942,1729966232344,-250.0,0.00066652,120]
[340870943,1729966232353,-409.0,0.00067,120]
[340870944,1729966232363,-159.02075616,0.00067502,60]
[340870953,1729966232470,-5439.03532821,0.0006759,2]
[340870955,1729966232483,-335.67291886,0.0006759,2]
[340870956,1729966232492,-1417.88875818,0.0006759,2]
[340870958,1729966232501,-150.0,0.00067591,60]
[340870960,1729966232510,-4335.10866409,0.00067597,120]
[340870962,1729966232519,-500.0,0.00067598,120]
[340870964,1729966232528,-500.0,0.00067598,120]
[340870965,1729966232537,-500.0,0.00067598,120]
[340870967,1729966232546,-500.0,0.00067598,120]
[340870968,1729966232555,-511.0,0.000676,50]
[340870969,1729966232564,-423.79460915,0.00067613,15]
[340870970,1729966232573,-150.0,0.00067621,60]
[340870971,1729966232582,-170.28950285,0.00067621,110]
[340870972,1729966232593,-150.0,0.00067632,60]
[340870973,1729966232605,-500.0,0.0006764,120]
[340870974,1729966232614,-500.0,0.0006764,120]
[340870975,1729966232623,-445.67330211,0.0006764,120]
[340870976,1729966232634,-150.0,0.00067642,60]
[340870977,1729966232644,-150.0,0.00067645,60]
[340870978,1729966232653,-150.0,0.00067646,60]
[340870979,1729966232662,-423.79460915,0.00067649,15]
[340870980,1729966232673,-500.0,0.00067655,120]
[340870981,1729966232682,-599.54389596,0.00067655,120]
[340870982,1729966232691,-570.36,0.00067655,120]
[340870983,1729966232700,-500.0,0.00067655,120]
[340870984,1729966232709,-150.0,0.00067661,60]
[340870985,1729966232718,-500.0,0.00067664,120]
[340870986,1729966232727,-500.0,0.00067664,120]
[340870987,1729966232736,-600.0,0.0006767,90]
[340870988,1729966232745,-151.21814411,0.00067673,14]
[340870989,1729966232754,-500.0,0.00067673,15]
[340870990,1729966232763,-500.0,0.00067673,2]
[340870991,1729966232772,-500.0,0.00067674,120]
[340870992,1729966232781,-485.21619993,0.00067674,120]
[340870993,1729966232790,-500.0,0.00067674,120]
[340870994,1729966232800,-500.0,0.00067674,120]
[340870995,1729966232809,-500.0,0.00067674,120]
[340870996,1729966232818,-500.0,0.00067674,120]
[340870997,1729966232827,-1270.4892507,0.00067674,5]
[340870998,1729966232837,-500.0,0.00067674,120]
[340870999,1729966232847,-500.0,0.00067674,120]
[340871000,1729966232858,-3971.7469482,0.00067674,5]
[340871001,1729966232868,-462.91610704,0.00067675,120]
[340871002,1729966232877,-500.0,0.00067675,120]
[340871003,1729966232886,-500.0,0.00067675,120]
[340871004,1729966232895,-500.0,0.00067675,120]
[340871005,1729966232904,-500.0,0.00067675,120]
[340871006,1729966232913,-500.0,0.00067675,120]
[340871007,1729966232923,-500.0,0.00067675,120]
[340871008,1729966232932,-500.0,0.00067675,120]
[340871009,1729966232941,-209.01978197,0.00067675,120]
[340871010,1729966232950,-500.0,0.00067675,120]
[340871011,1729966232959,-500.0,0.00067675,120]
[340871012,1729966232968,-995.61,0.00067675,120]
[340871013,1729966232978,-500.0,0.00067675,120]
[340871014,1729966232987,-500.0,0.00067675,120]
[340871015,1729966232996,-500.0,0.00067675,21]
[340871016,1729966233005,-500.0,0.00067675,120]
[340871017,1729966233014,-500.0,0.00067675,120]
[340871018,1729966233023,-857.08,0.00067675,120]
[340871019,1729966233033,-500.0,0.00067675,120]
[340871020,1729966233042,-500.0,0.00067675,120]
[340871021,1729966233051,-500.0,0.00067675,120]
[340871022,1729966233060,-204.43,0.00067675,120]
[340871023,1729966233069,-500.0,0.00067675,120]
[340871024,1729966233078,-500.0,0.00067675,3]
[340871025,1729966233087,-500.0,0.00067675,120]
[340871026,1729966233097,-899.54,0.00067675,120]
[340871027,1729966233106,-257.28690093,0.00067675,120]
[340871028,1729966233116,-167.30639833,0.00067675,120]
[340871029,1729966233125,-500.0,0.00067675,120]
[340871030,1729966233134,-500.0,0.00067675,120]
[340871031,1729966233143,-433.27317126,0.00067675,120]
[340871032,1729966233152,-500.0,0.00067675,120]
[340871033,1729966233161,-472.6,0.00067675,120]
[340871034,1729966233171,-500.0,0.00067675,120]
[340871035,1729966233180,-153422.05008669,0.00067676,120]
[340871036,1729966233189,-500.0,0.00067678,120]
[340871037,1729966233198,-441.32855426,0.00067679,120]
[340871038,1729966233207,-44849.9211601,0.00067679,16]
[340871039,1729966233217,-138287.25691,0.0006768,16]
[340871040,1729966233226,-589.12,0.0006768,120]
[340871041,1729966233235,-500.0,0.0006768,120]
[340871042,1729966233244,-500.0,0.0006768,120]
[340871043,1729966233254,-300.11351477,0.0006768,120]
[340871044,1729966233263,-500.0,0.0006768,120]
[340871045,1729966233272,-500.0,0.0006768,120]
[340871046,1729966233282,-500.0,0.0006768,120]
[340871047,1729966233291,-500.0,0.0006768,120]
[340871048,1729966233300,-500.87,0.0006768,120]
[340871049,1729966233309,-238.82293406,0.0006768,120]
[340871050,1729966233321,-261.17706594,0.0006768,120]
[340871051,1729966233330,-428.12534814,0.0006768,120]
[340871055,1729966238131,-500.0,0.00067675,120]
[340871057,1729966238140,-29.44,0.0006768,120]
[340871059,1729966238188,-399.51465186,0.0006768,120]
[340871060,1729966238198,-500.0,0.0006768,3]
[340871061,1729966238207,-500.0,0.0006768,120]
[340871062,1729966238216,-500.0,0.0006768,120]
[340871063,1729966238226,-500.0,0.0006768,120]
[340871064,1729966238235,-9837.36253538,0.0006768,14]
[340871065,1729966238319,-6175.48015243,0.0006768,14]
[340871066,1729966238330,-2110.37379641,0.0006768,14]
[340871067,1729966238341,-981.69342158,0.0006768,14]
[340871068,1729966238352,-19999.76526,0.0006768,14]
[340871069,1729966238364,-161509.2300752,0.0006768,14]
[340871070,1729966238373,-423.79460915,0.00067685,15]
[340871071,1729966238390,-22452.30513085,0.00067687,120]
[340871072,1729966238399,-332.87950496,0.00067688,120]
[340871073,1729966238408,-500.0,0.00067688,120]
[340871074,1729966238417,-500.0,0.00067688,120]
[340871075,1729966238426,-500.0,0.00067688,120]
[340871076,1729966238435,-500.0,0.00067688,120]
[340871077,1729966238445,-500.0,0.00067688,120]
[340871078,1729966238454,-500.0,0.00067688,120]
[340871079,1729966238464,-857.08,0.00067688,120]
[340871080,1729966238474,-500.0,0.00067688,3]
[340871081,1729966238483,-500.0,0.00067688,120]
[340871082,1729966238493,-500.0,0.00067688,120]
[340871083,1729966238502,-500.0,0.00067688,120]
[340871084,1729966238511,-1000.0,0.00067689,120]
[340871085,1729966238521,-500.0,0.00067689,120]
[340871086,1729966238530,-500.0,0.00067689,120]
[340871087,1729966238540,-500.0,0.00067689,120]
[340871088,1729966238549,-500.0,0.00067689,120]
[340871089,1729966238558,-500.0,0.00067689,120]
[340871090,1729966238567,-500.0,0.00067689,120]
[340871091,1729966238576,-500.0,0.00067689,120]
[340871092,1729966238585,-500.0,0.00067689,120]
[340871093,1729966238595,-500.0,0.00067689,120]
[340871094,1729966238604,-500.0,0.00067689,120]
[340871095,1729966238615,-180.98269905,0.00067689,120]
[340871096,1729966238625,-500.0,0.00067689,120]
[340871097,1729966238635,-447.53101271,0.00067689,120]
[340871098,1729966238644,-500.0,0.00067689,120]
[340871099,1729966238655,-500.0,0.00067689,120]
[340871100,1729966238664,-500.0,0.00067689,120]
[340871101,1729966238673,-500.0,0.00067689,120]
[340871102,1729966238681,-511.16,0.00067689,120]
[340871103,1729966238691,-305.8,0.00067689,120]
[340871104,1729966238700,-995.61,0.00067689,120]
[340871105,1729966238709,-995.61,0.00067689,120]
[340871106,1729966238718,-995.61,0.00067689,120]
[340871107,1729966238728,-995.61,0.00067689,120]
[340871108,1729966238737,-995.61,0.00067689,120]
[340871109,1729966238746,-995.61,0.00067689,120]
[340871110,1729966238755,-995.61,0.00067689,120]
[340871111,1729966238765,-995.61,0.00067689,120]
[340871112,1729966238774,-995.61,0.00067689,120]
[340871113,1729966238784,-995.61,0.00067689,120]
[340871114,1729966238793,-500.0,0.00067689,120]
[340871115,1729966238803,-995.61,0.00067689,120]
[340871116,1729966238812,-500.0,0.00067689,120]
[340871117,1729966238821,-995.61,0.00067689,120]
[340871118,1729966238830,-500.0,0.00067689,120]
[340871119,1729966238839,-995.61,0.00067689,120]
[340871120,1729966238848,-500.0,0.00067689,120]
[340871122,1729966238858,-995.61,0.00067689,120]
[340871124,1729966238867,-500.0,0.00067689,120]
[340871125,1729966238876,-995.61,0.00067689,120]
[340871127,1729966238887,-500.0,0.00067689,120]
[340871129,1729966238897,-995.61,0.00067689,120]
[340871131,1729966238906,-500.0,0.00067689,120]
[340871133,1729966238915,-995.61,0.00067689,120]
[340871134,1729966238924,-201.24,0.00067689,120]
[340871136,1729966238934,-995.61,0.00067689,120]
[340871138,1729966238943,-995.61,0.00067689,120]
[340871139,1729966238952,-995.61,0.00067689,120]
[340871140,1729966238962,-995.61,0.00067689,120]
[340871141,1729966238971,-995.61,0.00067689,120]
[340871142,1729966238981,-995.6723,0.00067689,120]
[340871143,1729966238990,-500.0,0.00067689,120]
[340871144,1729966238999,-500.0,0.00067689,120]
[340871145,1729966239009,-500.0,0.00067689,120]
[340871146,1729966239019,-500.0,0.00067689,120]
[340871147,1729966239028,-500.0,0.00067689,120]
[340871148,1729966239037,-500.0,0.00067689,120]
[340871149,1729966239046,-500.0,0.00067689,120]
[340871150,1729966239055,-500.0,0.00067689,120]
[340871151,1729966239065,-500.0,0.00067689,120]
[340871152,1729966239074,-500.0,0.00067689,120]
[340871153,1729966239083,-500.0,0.00067689,120]
[340871154,1729966239092,-500.0,0.00067689,120]
[340871155,1729966239101,-500.0,0.00067689,120]
[340871156,1729966239110,-500.0,0.00067689,120]
[340871157,1729966239120,-500.0,0.00067689,120]
[340871158,1729966239130,-500.0,0.00067689,120]
[340871159,1729966239139,-431.03,0.00067689,120]
[340871160,1729966239148,-500.0,0.00067689,21]
[340871161,1729966239158,-500.0,0.00067689,21]
[340871162,1729966239167,-500.0,0.00067689,21]
[340871163,1729966239176,-500.0,0.00067689,21]
[340871164,1729966239185,-500.0,0.00067689,21]
[340871165,1729966239194,-238.16,0.00067689,21]
[340871166,1729966239204,-500.0,0.00067689,120]
[340871167,1729966239213,-500.0,0.00067689,120]
[340871168,1729966239223,-500.0,0.00067689,120]
[340871169,1729966239232,-500.0,0.00067689,120]
[340871170,1729966239241,-500.0,0.00067689,120]
[340871171,1729966239250,-500.0,0.00067689,120]
[340871172,1729966239259,-500.0,0.00067689,120]
[340871173,1729966239268,-477.40520001,0.00067689,120]
[340871174,1729966239277,-857.08,0.00067689,120]
[340871175,1729966239287,-857.08,0.00067689,120]
[340871176,1729966239296,-857.08,0.00067689,120]
[340871177,1729966239305,-857.08,0.00067689,120]
[340871178,1729966239314,-857.08,0.00067689,120]
[340871179,1729966239323,-857.08,0.00067689,120]
[340871180,1729966239332,-857.08,0.00067689,120]
[340871181,1729966239342,-857.08,0.00067689,120]
[340871182,1729966239351,-857.08,0.00067689,120]
[340871183,1729966239360,-857.08,0.00067689,120]
[340871184,1729966239369,-857.08,0.00067689,120]
[340871185,1729966239380,-500.0,0.00067689,120]
[340871186,1729966239389,-857.08,0.00067689,120]
[340871187,1729966239398,-500.0,0.00067689,120]
[340871188,1729966239407,-857.08,0.00067689,120]
[340871189,1729966239416,-500.0,0.00067689,120]
[340871190,1729966239426,-857.08,0.00067689,120]
[340871191,1729966239435,-500.0,0.00067689,120]
[340871192,1729966239444,-857.08,0.00067689,120]
[340871193,1729966239454,-857.08,0.00067689,120]
[340871194,1729966239463,-500.0,0.00067689,120]
[340871195,1729966239472,-500.0,0.00067689,120]
[340871196,1729966239482,-857.08,0.00067689,120]
[340871197,1729966239491,-857.08,0.00067689,120]
[340871198,1729966239500,-500.0,0.00067689,120]
[340871199,1729966239509,-857.08,0.00067689,120]
[340871200,1729966239518,-500.0,0.00067689,120]
[340871201,1729966239529,-285.89063666,0.00067689,31]
[340871202,1729966239623,-500.0,0.00067689,120]
[340871203,1729966239634,-857.08,0.00067689,120]
[340871204,1729966239643,-500.0,0.00067689,120]
[340871205,1729966239653,-857.3,0.00067689,120]
[340871206,1729966239662,-500.0,0.00067689,120]
[340871207,1729966239671,-500.0,0.00067689,120]
[340871208,1729966239680,-474.18,0.00067689,120]
[340871209,1729966239689,-500.0,0.00067689,120]
[340871210,1729966239698,-500.0,0.00067689,120]
[340871211,1729966239708,-500.0,0.00067689,120]
[340871212,1729966239717,-500.0,0.00067689,120]
[340871213,1729966239726,-500.0,0.00067689,120]
[340871214,1729966239735,-500.0,0.00067689,120]
[340871215,1729966239744,-500.0,0.00067689,120]
[340871216,1729966239753,-500.0,0.00067689,120]
[340871217,1729966239762,-500.0,0.00067689,120]
[340871218,1729966239771,-500.0,0.00067689,120]
[340871219,1729966239781,-500.0,0.00067689,120]
[340871220,1729966239790,-500.0,0.00067689,120]
[340871221,1729966239799,-500.0,0.00067689,120]
[340871222,1729966239808,-500.0,0.00067689,120]
[340871223,1729966239817,-500.0,0.00067689,120]
[340871224,1729966239826,-500.0,0.00067689,120]
[340871225,1729966239835,-500.0,0.00067689,120]
[340871226,1729966239845,-500.0,0.00067689,120]
[340871227,1729966239856,-500.0,0.00067689,3]
[340871228,1729966239866,-500.0,0.00067689,120]
[340871229,1729966239875,-500.0,0.00067689,120]
[340871230,1729966239887,-508.19,0.00067689,3]
[340871231,1729966239896,-500.0,0.00067689,120]
[340871232,1729966239905,-500.0,0.00067689,120]
[340871233,1729966239914,-222.55,0.00067689,120]
[340871234,1729966239924,-394.0034,0.00067689,120]
[340871235,1729966239933,-899.54,0.00067689,120]
[340871236,1729966239942,-899.54,0.00067689,120]
[340871237,1729966239952,-899.54,0.00067689,120]
[340871238,1729966239962,-899.54,0.00067689,120]
[340871239,1729966239972,-899.54,0.00067689,120]
[340871240,1729966239981,-899.54,0.00067689,120]
[340871241,1729966239991,-899.54,0.00067689,120]
[340871242,1729966240000,-899.54,0.00067689,120]
[340871243,1729966240009,-899.54,0.00067689,120]
[340871245,1729966240018,-899.54,0.00067689,120]
[340871247,1729966240028,-899.54,0.00067689,120]
[340871249,1729966240037,-899.54,0.00067689,120]
[340871250,1729966240046,-899.54,0.00067689,120]
[340871252,1729966240055,-899.54,0.00067689,120]
[340871253,1729966240066,-899.54,0.00067689,120]
[340871254,1729966240075,-899.54,0.00067689,120]
[340871255,1729966240084,-899.54,0.00067689,120]
[340871256,1729966240094,-899.54,0.00067689,120]
[340871257,1729966240103,-899.54,0.00067689,120]
[340871258,1729966240112,-899.54,0.00067689,120]
[340871259,1729966240122,-899.54,0.00067689,120]
[340871260,1729966240131,-899.54,0.00067689,120]
[340871261,1729966240141,-899.63210697,0.00067689,120]
[340871262,1729966240150,-500.0,0.00067689,120]
[340871263,1729966240159,-296.26086663,0.00067689,120]
[340871264,1729966240169,-500.0,0.00067689,120]
[340871265,1729966240178,-500.0,0.00067689,120]
[340871266,1729966240187,-221.79,0.00067689,120]
[340871267,1729966240197,-500.0,0.00067689,120]
[340871268,1729966240206,-500.0,0.00067689,120]
[340871269,1729966240216,-500.0,0.00067689,120]
[340871270,1729966240225,-459.88,0.00067689,120]
[340871271,1729966240235,-500.0,0.00067689,120]
[340871272,1729966240244,-500.0,0.00067689,120]
[340871273,1729966240254,-500.0,0.00067689,120]
[340871274,1729966240264,-500.0,0.00067689,120]
[340871275,1729966240273,-500.0,0.00067689,120]
[340871276,1729966240282,-500.0,0.00067689,120]
[340871277,1729966240291,-500.0,0.00067689,120]
[340871278,1729966240301,-500.0,0.00067689,120]
[340871279,1729966240310,-500.0,0.00067689,120]
[340871280,1729966240319,-500.0,0.00067689,120]
[340871281,1729966240328,-500.0,0.00067689,120]
[340871282,1729966240338,-500.0,0.00067689,120]
[340871283,1729966240347,-500.0,0.00067689,120]
[340871284,1729966240356,-500.0,0.00067689,120]
[340871285,1729966240365,-500.0,0.00067689,120]
[340871286,1729966240374,-500.0,0.00067689,120]
[340871287,1729966240385,-500.0,0.00067689,120]
[340871288,1729966240394,-500.0,0.00067689,120]
[340871289,1729966240403,-545.95583599,0.00067689,120]
[340871290,1729966240413,-500.0,0.00067689,120]
[340871291,1729966240422,-503.93,0.00067689,120]
[340871292,1729966240431,-490.36780507,0.0006769,60]
[340871293,1729966240441,-44569.43619707,0.0006769,68]
[340871294,1729966240450,-99614.10094219,0.0006769,62]
[340871295,1729966240459,-89830.3771296,0.0006769,120]
[340871296,1729966240511,-512.68168064,0.0006769,120]
[340871297,1729966240536,-142848.97982861,0.0006769,120]
[340871298,1729966240547,-14585.18977452,0.0006769,120]
[340871300,1729966240558,-87744.99781511,0.0006769,120]
[340871302,1729966240569,-3201.89072211,0.0006769,120]
[340871304,1729966240580,-1676.593185,0.0006769,120]
[340871305,1729966240590,-780.70424734,0.0006769,120]
[340871306,1729966240601,-20685.3768671,0.0006769,120]
[340871307,1729966240612,-1143.320003,0.0006769,120]
[340871309,1729966240627,-5721.0,0.0006769,120]
[340871311,1729966240639,-2714.46805953,0.0006769,120]
[340871312,1729966240649,-2399.999999,0.0006769,120]
[340871313,1729966240661,-17269.33071711,0.0006769,120]
[340871340,1729966241092,-71029.00740007,0.0006769,120]
[340871341,1729966241105,-1108.2439701,0.0006769,120]
[340871347,1729966243086,-1308.00000413,0.0006769,120]
[340871348,1729966243203,-2673.11442897,0.0006769,120]
[340871349,1729966243262,-1587.33719354,0.0006769,120]